{"text_format":"1","workbook":"xlsx","n_sheets":14,"sheets":["dataset","overview","sort feature","multiple columns","context menu","custom sort","sort function","small and rows functions","single column","blank cells","vba","Sort row","alphabetic","filter and sort"],"not_rendered":{"charts":0,"images":0,"macros":1,"external_links":0,"defined_names":1,"comments":0,"pivot_tables":0},"unopened":[],"bounds":{"document_bytes":16777216,"sheet_cells":100000,"rows_first":2000,"rows_last":500,"rows_between":2000,"halvings":0,"cell_chars":16384,"cell_head_chars":4096},"cells_cut":0,"cells_raw":0,"read":"whole","date_system":"1900"}

{"sheet":"dataset","index":0,"n_rows":17,"n_cols":5,"rows_kept":17,"cut":false,"hidden":false,"merged":[[1,1,1,4]]}
[]
[null,"Sort in Ascending Order"]
[]
[null,"Date","Product","Size","Sales"]
[null,"2023-03-02","Shirt","Large",502.21]
[null,"2023-03-08","Sweater","Small",620.99]
[null,"2023-02-22","Pant","Medium",248.87]
[null,"2023-01-31","Trouser","Extra Large",686.1]
[null,"2023-02-15","Skirt","Small",640.4]
[null,"2023-03-04","Gown","Medium",342.64]
[null,"2023-03-19","Frock","Large",376.11]
[null,"2023-02-09","Sweater","Large",536.52]
[null,"2023-02-14","Trouser","Extra Large",576.77]
[null,"2023-01-29","Gown","Medium",329.83]
[null,"2023-01-23","Shirt","Small",465.4]
[null,"2023-02-28","Trouser","Large",234.06]
[null,"2023-03-10","Shirt","Extra Large",539.19000000000005]

{"sheet":"overview","index":1,"n_rows":17,"n_cols":5,"rows_kept":17,"cut":false,"hidden":false,"merged":[[1,1,1,4]]}
[]
[null,"Overview of Sorting in Ascending Order"]
[]
[null,"Date","Product","Size","Sales"]
[null,"2023-02-28","Trouser","Large",234.06]
[null,"2023-02-22","Pant","Medium",248.87]
[null,"2023-01-29","Gown","Medium",329.83]
[null,"2023-03-04","Gown","Medium",342.64]
[null,"2023-03-19","Frock","Large",376.11]
[null,"2023-01-23","Shirt","Small",465.4]
[null,"2023-03-02","Shirt","Large",502.21]
[null,"2023-02-09","Sweater","Large",536.52]
[null,"2023-03-10","Shirt","Extra Large",539.19000000000005]
[null,"2023-02-14","Trouser","Extra Large",576.77]
[null,"2023-03-08","Sweater","Small",620.99]
[null,"2023-02-15","Skirt","Small",640.4]
[null,"2023-01-31","Trouser","Extra Large",686.1]

{"sheet":"sort feature","index":2,"n_rows":17,"n_cols":16,"rows_kept":17,"cut":false,"hidden":false,"merged":[[1,1,1,4],[1,12,1,15]]}
[]
[null,"Use of Sort Feature",null,null,null,null,null,null,null,null,null,null,"Do It Yourself"]
[]
[null,"Date","Product","Size","Sales",null,null,null,null,null,null,null,"Date","Product","Size","Sales"]
[null,"2023-02-28","Trouser","Large",234.06,null,null,null,null,null,null,null,"2023-03-02","Shirt","Large",502.21]
[null,"2023-02-22","Pant","Medium",248.87,null,null,null,null,null,null,null,"2023-03-08","Sweater","Small",620.99]
[null,"2023-01-29","Gown","Medium",329.83,null,null,null,null,null,null,null,"2023-02-22","Pant","Medium",248.87]
[null,"2023-03-04","Gown","Medium",342.64,null,null,null,null,null,null,null,"2023-01-31","Trouser","Extra Large",686.1]
[null,"2023-03-19","Frock","Large",376.11,null,null,null,null,null,null,null,"2023-02-15","Skirt","Small",640.4]
[null,"2023-01-23","Shirt","Small",465.4,null,null,null,null,null,null,null,"2023-03-04","Gown","Medium",342.64]
[null,"2023-03-02","Shirt","Large",502.21,null,null,null,null,null,null,null,"2023-03-19","Frock","Large",376.11]
[null,"2023-02-09","Sweater","Large",536.52,null,null,null,null,null,null,null,"2023-02-09","Sweater","Large",536.52]
[null,"2023-03-10","Shirt","Extra Large",539.19000000000005,null,null,null,null,null,null,null,"2023-02-14","Trouser","Extra Large",576.77]
[null,"2023-02-14","Trouser","Extra Large",576.77,null,null,null,null,null,null,null,"2023-01-29","Gown","Medium",329.83]
[null,"2023-03-08","Sweater","Small",620.99,null,null,null,null,null,null,null,"2023-01-23","Shirt","Small",465.4]
[null,"2023-02-15","Skirt","Small",640.4,null,null,null,null,null,null,null,"2023-02-28","Trouser","Large",234.06]
[null,"2023-01-31","Trouser","Extra Large",686.1,null,null,null,null,null,null,null,"2023-03-10","Shirt","Extra Large",539.19000000000005]

{"sheet":"multiple columns","index":3,"n_rows":17,"n_cols":18,"rows_kept":17,"cut":false,"hidden":false,"merged":[[1,1,1,4],[1,14,1,17]]}
[]
[null,"Sort in Ascending Order",null,null,null,null,null,null,null,null,null,null,null,null,"Do It Yourself"]
[]
[null,"Date","Product","Size","Sales",null,null,null,null,null,null,null,null,null,"Date","Product","Size","Sales"]
[null,"2023-01-23","Shirt","Small",465.4,null,null,null,null,null,null,null,null,null,"2023-03-02","Shirt","Large",502.21]
[null,"2023-01-29","Gown","Medium",329.83,null,null,null,null,null,null,null,null,null,"2023-03-08","Sweater","Small",620.99]
[null,"2023-01-29","Sweater","Large",536.52,null,null,null,null,null,null,null,null,null,"2023-02-22","Pant","Medium",248.87]
[null,"2023-01-29","Trouser","Extra Large",686.1,null,null,null,null,null,null,null,null,null,"2023-01-31","Trouser","Extra Large",686.1]
[null,"2023-02-14","Trouser","Extra Large",576.77,null,null,null,null,null,null,null,null,null,"2023-02-15","Skirt","Small",640.4]
[null,"2023-02-15","Skirt","Small",640.4,null,null,null,null,null,null,null,null,null,"2023-03-04","Gown","Medium",342.64]
[null,"2023-02-22","Pant","Medium",248.87,null,null,null,null,null,null,null,null,null,"2023-03-19","Frock","Large",376.11]
[null,"2023-02-28","Trouser","Large",234.06,null,null,null,null,null,null,null,null,null,"2023-02-09","Sweater","Large",536.52]
[null,"2023-03-02","Shirt","Large",502.21,null,null,null,null,null,null,null,null,null,"2023-02-14","Trouser","Extra Large",576.77]
[null,"2023-03-04","Gown","Medium",342.64,null,null,null,null,null,null,null,null,null,"2023-01-29","Gown","Medium",329.83]
[null,"2023-03-08","Sweater","Small",620.99,null,null,null,null,null,null,null,null,null,"2023-01-23","Shirt","Small",465.4]
[null,"2023-03-19","Frock","Large",376.11,null,null,null,null,null,null,null,null,null,"2023-02-28","Trouser","Large",234.06]
[null,"2023-03-19","Shirt","Extra Large",539.19000000000005,null,null,null,null,null,null,null,null,null,"2023-03-10","Shirt","Extra Large",539.19000000000005]

{"sheet":"context menu","index":4,"n_rows":17,"n_cols":19,"rows_kept":17,"cut":false,"hidden":false,"merged":[[1,1,1,4],[1,15,1,18]]}
[]
[null,"Sorting Dates Using Context Menu",null,null,null,null,null,null,null,null,null,null,null,null,null,"Do It Yourself"]
[]
[null,"Date","Product","Size","Sales",null,null,null,null,null,null,null,null,null,null,"Date","Product","Size","Sales"]
[null,"2023-01-23","Shirt","Small",465.4,null,null,null,null,null,null,null,null,null,null,"2023-03-02","Shirt","Large",502.21]
[null,"2023-01-29","Gown","Medium",329.83,null,null,null,null,null,null,null,null,null,null,"2023-03-08","Sweater","Small",620.99]
[null,"2023-01-31","Trouser","Extra Large",686.1,null,null,null,null,null,null,null,null,null,null,"2023-02-22","Pant","Medium",248.87]
[null,"2023-02-09","Sweater","Large",536.52,null,null,null,null,null,null,null,null,null,null,"2023-01-31","Trouser","Extra Large",686.1]
[null,"2023-02-14","Trouser","Extra Large",576.77,null,null,null,null,null,null,null,null,null,null,"2023-02-15","Skirt","Small",640.4]
[null,"2023-02-15","Skirt","Small",640.4,null,null,null,null,null,null,null,null,null,null,"2023-03-04","Gown","Medium",342.64]
[null,"2023-02-22","Pant","Medium",248.87,null,null,null,null,null,null,null,null,null,null,"2023-03-19","Frock","Large",376.11]
[null,"2023-02-28","Trouser","Large",234.06,null,null,null,null,null,null,null,null,null,null,"2023-02-09","Sweater","Large",536.52]
[null,"2023-03-02","Shirt","Large",502.21,null,null,null,null,null,null,null,null,null,null,"2023-02-14","Trouser","Extra Large",576.77]
[null,"2023-03-04","Gown","Medium",342.64,null,null,null,null,null,null,null,null,null,null,"2023-01-29","Gown","Medium",329.83]
[null,"2023-03-08","Sweater","Small",620.99,null,null,null,null,null,null,null,null,null,null,"2023-01-23","Shirt","Small",465.4]
[null,"2023-03-10","Shirt","Extra Large",539.19000000000005,null,null,null,null,null,null,null,null,null,null,"2023-02-28","Trouser","Large",234.06]
[null,"2023-03-19","Frock","Large",376.11,null,null,null,null,null,null,null,null,null,null,"2023-03-10","Shirt","Extra Large",539.19000000000005]

{"sheet":"custom sort","index":5,"n_rows":17,"n_cols":17,"rows_kept":17,"cut":false,"hidden":false,"merged":[[1,1,1,4],[1,13,1,16]]}
[]
[null,"Sort in Ascending Order",null,null,null,null,null,null,null,null,null,null,null,"Do It Yourself"]
[]
[null,"Date","Product","Size","Sales",null,null,null,null,null,null,null,null,"Date","Product","Size","Sales"]
[null,"2023-01-23","Shirt","Small",465.4,null,null,null,null,null,null,null,null,"2023-03-02","Shirt","Large",502.21]
[null,"2023-03-08","Sweater","Small",620.99,null,null,null,null,null,null,null,null,"2023-03-08","Sweater","Small",620.99]
[null,"2023-02-15","Skirt","Small",640.4,null,null,null,null,null,null,null,null,"2023-02-22","Pant","Medium",248.87]
[null,"2023-02-22","Pant","Medium",248.87,null,null,null,null,null,null,null,null,"2023-01-31","Trouser","Extra Large",686.1]
[null,"2023-01-29","Gown","Medium",329.83,null,null,null,null,null,null,null,null,"2023-02-15","Skirt","Small",640.4]
[null,"2023-03-04","Gown","Medium",342.64,null,null,null,null,null,null,null,null,"2023-03-04","Gown","Medium",342.64]
[null,"2023-02-28","Trouser","Large",234.06,null,null,null,null,null,null,null,null,"2023-03-19","Frock","Large",376.11]
[null,"2023-03-19","Frock","Large",376.11,null,null,null,null,null,null,null,null,"2023-02-09","Sweater","Large",536.52]
[null,"2023-03-02","Shirt","Large",502.21,null,null,null,null,null,null,null,null,"2023-02-14","Trouser","Extra Large",576.77]
[null,"2023-02-09","Sweater","Large",536.52,null,null,null,null,null,null,null,null,"2023-01-29","Gown","Medium",329.83]
[null,"2023-03-10","Shirt","Extra Large",539.19000000000005,null,null,null,null,null,null,null,null,"2023-01-23","Shirt","Small",465.4]
[null,"2023-02-14","Trouser","Extra Large",576.77,null,null,null,null,null,null,null,null,"2023-02-28","Trouser","Large",234.06]
[null,"2023-01-31","Trouser","Extra Large",686.1,null,null,null,null,null,null,null,null,"2023-03-10","Shirt","Extra Large",539.19000000000005]

{"sheet":"sort function","index":6,"n_rows":17,"n_cols":20,"rows_kept":17,"cut":false,"hidden":false,"merged":[[1,1,1,9],[1,16,1,19]]}
[]
[null,"Use of SORT Function",null,null,null,null,null,null,null,null,null,null,null,null,null,null,"Do It Yourself"]
[]
[null,"Date","Product","Size","Sales",null,"Date","Product","Size","Sales",null,null,null,null,null,null,"Date","Product","Size","Sales"]
[null,"2023-03-02","Shirt","Large",502.21,null,{"$f":"_xlfn._xlws.SORT(B5:E17,4,1,FALSE)","v":"2023-02-28"},"Trouser","Large",234.06,null,null,null,null,null,null,"2023-03-02","Shirt","Large",502.21]
[null,"2023-03-08","Sweater","Small",620.99,null,"2023-02-22","Pant","Medium",248.87,null,null,null,null,null,null,"2023-03-08","Sweater","Small",620.99]
[null,"2023-02-22","Pant","Medium",248.87,null,"2023-01-29","Gown","Medium",329.83,null,null,null,null,null,null,"2023-02-22","Pant","Medium",248.87]
[null,"2023-01-31","Trouser","Extra Large",686.1,null,"2023-03-04","Gown","Medium",342.64,null,null,null,null,null,null,"2023-01-31","Trouser","Extra Large",686.1]
[null,"2023-02-15","Skirt","Small",640.4,null,"2023-03-19","Frock","Large",376.11,null,null,null,null,null,null,"2023-02-15","Skirt","Small",640.4]
[null,"2023-03-04","Gown","Medium",342.64,null,"2023-01-23","Shirt","Small",465.4,null,null,null,null,null,null,"2023-03-04","Gown","Medium",342.64]
[null,"2023-03-19","Frock","Large",376.11,null,"2023-03-02","Shirt","Large",502.21,null,null,null,null,null,null,"2023-03-19","Frock","Large",376.11]
[null,"2023-02-09","Sweater","Large",536.52,null,"2023-02-09","Sweater","Large",536.52,null,null,null,null,null,null,"2023-02-09","Sweater","Large",536.52]
[null,"2023-02-14","Trouser","Extra Large",576.77,null,"2023-03-10","Shirt","Extra Large",539.19000000000005,null,null,null,null,null,null,"2023-02-14","Trouser","Extra Large",576.77]
[null,"2023-01-29","Gown","Medium",329.83,null,"2023-02-14","Trouser","Extra Large",576.77,null,null,null,null,null,null,"2023-01-29","Gown","Medium",329.83]
[null,"2023-01-23","Shirt","Small",465.4,null,"2023-03-08","Sweater","Small",620.99,null,null,null,null,null,null,"2023-01-23","Shirt","Small",465.4]
[null,"2023-02-28","Trouser","Large",234.06,null,"2023-02-15","Skirt","Small",640.4,null,null,null,null,null,null,"2023-02-28","Trouser","Large",234.06]
[null,"2023-03-10","Shirt","Extra Large",539.19000000000005,null,"2023-01-31","Trouser","Extra Large",686.1,null,null,null,null,null,null,"2023-03-10","Shirt","Extra Large",539.19000000000005]

{"sheet":"small and rows functions","index":7,"n_rows":17,"n_cols":4,"rows_kept":17,"cut":false,"hidden":false,"merged":[[1,1,1,4]]}
[]
[null,"Sort Numbers Only Using Combined Functions"]
[]
[null,"Sales","Sales (Ascending)","Sales (Descending)"]
[null,502.21,{"$f":"SMALL($B$5:$B$17,ROWS($B$5:B5))","v":234.06},{"$f":"LARGE($B$5:$B$17,ROWS($B$5:B5))","v":686.1}]
[null,620.99,{"$f":"SMALL($B$5:$B$17,ROWS($B$5:B6))","v":248.87},{"$f":"LARGE($B$5:$B$17,ROWS($B$5:B6))","v":640.4}]
[null,248.87,{"$f":"SMALL($B$5:$B$17,ROWS($B$5:B7))","v":329.83},{"$f":"LARGE($B$5:$B$17,ROWS($B$5:B7))","v":620.99}]
[null,686.1,{"$f":"SMALL($B$5:$B$17,ROWS($B$5:B8))","v":342.64},{"$f":"LARGE($B$5:$B$17,ROWS($B$5:B8))","v":576.77}]
[null,640.4,{"$f":"SMALL($B$5:$B$17,ROWS($B$5:B9))","v":376.11},{"$f":"LARGE($B$5:$B$17,ROWS($B$5:B9))","v":539.19000000000005}]
[null,342.64,{"$f":"SMALL($B$5:$B$17,ROWS($B$5:B10))","v":465.4},{"$f":"LARGE($B$5:$B$17,ROWS($B$5:B10))","v":536.52}]
[null,376.11,{"$f":"SMALL($B$5:$B$17,ROWS($B$5:B11))","v":502.21},{"$f":"LARGE($B$5:$B$17,ROWS($B$5:B11))","v":502.21}]
[null,536.52,{"$f":"SMALL($B$5:$B$17,ROWS($B$5:B12))","v":536.52},{"$f":"LARGE($B$5:$B$17,ROWS($B$5:B12))","v":465.4}]
[null,576.77,{"$f":"SMALL($B$5:$B$17,ROWS($B$5:B13))","v":539.19000000000005},{"$f":"LARGE($B$5:$B$17,ROWS($B$5:B13))","v":376.11}]
[null,329.83,{"$f":"SMALL($B$5:$B$17,ROWS($B$5:B14))","v":576.77},{"$f":"LARGE($B$5:$B$17,ROWS($B$5:B14))","v":342.64}]
[null,465.4,{"$f":"SMALL($B$5:$B$17,ROWS($B$5:B15))","v":620.99},{"$f":"LARGE($B$5:$B$17,ROWS($B$5:B15))","v":329.83}]
[null,234.06,{"$f":"SMALL($B$5:$B$17,ROWS($B$5:B16))","v":640.4},{"$f":"LARGE($B$5:$B$17,ROWS($B$5:B16))","v":248.87}]
[null,539.19000000000005,{"$f":"SMALL($B$5:$B$17,ROWS($B$5:B17))","v":686.1},{"$f":"LARGE($B$5:$B$17,ROWS($B$5:B17))","v":234.06}]

{"sheet":"single column","index":8,"n_rows":17,"n_cols":17,"rows_kept":17,"cut":false,"hidden":false,"merged":[[1,1,1,7],[1,14,1,16]]}
[]
[null,"Sort in Ascending Order",null,null,null,null,null,null,null,null,null,null,null,null,"Do It Yourself"]
[]
[null,"Product","Size","Sales",null,"Product","Size","Sales (Sorted)",null,null,null,null,null,null,"Product","Size","Sales"]
[null,"Trouser","Large",502.21,null,"Skirt","Small",234.06,null,null,null,null,null,null,"Shirt","Large",502.21]
[null,"Pant","Medium",620.99,null,"Gown","Medium",248.87,null,null,null,null,null,null,"Sweater","Small",620.99]
[null,"Gown","Medium",248.87,null,"Trouser","Extra Large",329.83,null,null,null,null,null,null,"Pant","Medium",248.87]
[null,"Gown","Medium",686.1,null,"Shirt","Small",342.64,null,null,null,null,null,null,"Trouser","Extra Large",686.1]
[null,"Frock","Large",640.4,null,"Shirt","Large",376.11,null,null,null,null,null,null,"Skirt","Small",640.4]
[null,"Shirt","Small",342.64,null,"Sweater","Small",465.4,null,null,null,null,null,null,"Gown","Medium",342.64]
[null,"Shirt","Large",376.11,null,"Trouser","Large",502.21,null,null,null,null,null,null,"Frock","Large",376.11]
[null,"Sweater","Large",536.52,null,"Sweater","Large",536.52,null,null,null,null,null,null,"Sweater","Large",536.52]
[null,"Shirt","Extra Large",576.77,null,"Trouser","Extra Large",539.19000000000005,null,null,null,null,null,null,"Trouser","Extra Large",576.77]
[null,"Trouser","Extra Large",329.83,null,"Shirt","Extra Large",576.77,null,null,null,null,null,null,"Gown","Medium",329.83]
[null,"Sweater","Small",465.4,null,"Pant","Medium",620.99,null,null,null,null,null,null,"Shirt","Small",465.4]
[null,"Skirt","Small",234.06,null,"Frock","Large",640.4,null,null,null,null,null,null,"Trouser","Large",234.06]
[null,"Trouser","Extra Large",539.19000000000005,null,"Gown","Medium",686.1,null,null,null,null,null,null,"Shirt","Extra Large",539.19000000000005]

{"sheet":"blank cells","index":9,"n_rows":22,"n_cols":9,"rows_kept":22,"cut":false,"hidden":false,"merged":[]}
[]
[null,"Sort with Blank Cells",null,null,null,null,null,null,"Do It Yourself"]
[]
[null,"Sorted Data with Blanks",null,null,null,null,null,null,"Sales"]
[null,234.06,null,null,null,null,null,null,502.21]
[null,248.87,null,null,null,null,null,null,620.99]
[null,329.83]
[null,342.64,null,null,null,null,null,null,686.1]
[null,376.11]
[null,465.4,null,null,null,null,null,null,640.4]
[null,502.21,null,null,null,null,null,null,342.64]
[null,536.52]
[null,539.19000000000005,null,null,null,null,null,null,376.11]
[null,576.77,null,null,null,null,null,null,536.52]
[null,620.99,null,null,null,null,null,null,576.77]
[null,640.4]
[null,686.1,null,null,null,null,null,null,329.83]
[]
[null,null,null,null,null,null,null,null,248.87]
[null,null,null,null,null,null,null,null,465.4]
[null,null,null,null,null,null,null,null,234.06]
[null,null,null,null,null,null,null,null,539.19000000000005]

{"sheet":"vba","index":10,"n_rows":22,"n_cols":11,"rows_kept":22,"cut":false,"hidden":false,"merged":[]}
[]
[null,"Sort Blank Cells to Top",null,null,null,null,null,null,null,null,"Do It Yourself"]
[]
[null,"Sorted Data with Blanks",null,null,null,null,null,null,null,null,"Sales"]
[null,null,null,null,null,null,null,null,null,null,502.21]
[null,null,null,null,null,null,null,null,null,null,620.99]
[]
[null,null,null,null,null,null,null,null,null,null,686.1]
[]
[null,234.06,null,null,null,null,null,null,null,null,640.4]
[null,248.87,null,null,null,null,null,null,null,null,342.64]
[null,329.83]
[null,342.64,null,null,null,null,null,null,null,null,376.11]
[null,376.11,null,null,null,null,null,null,null,null,536.52]
[null,465.4,null,null,null,null,null,null,null,null,576.77]
[null,502.21]
[null,536.52,null,null,null,null,null,null,null,null,329.83]
[null,539.19000000000005]
[null,576.77,null,null,null,null,null,null,null,null,248.87]
[null,620.99,null,null,null,null,null,null,null,null,465.4]
[null,640.4,null,null,null,null,null,null,null,null,234.06]
[null,686.1,null,null,null,null,null,null,null,null,539.19000000000005]

{"sheet":"Sort row","index":11,"n_rows":5,"n_cols":17,"rows_kept":5,"cut":false,"hidden":false,"merged":[[1,1,1,5],[1,12,1,16]]}
[]
[null,"Sort in Ascending Order in Row",null,null,null,null,null,null,null,null,null,null,"Do It Yourself"]
[]
[null,"May","April","February","January","March",null,null,null,null,null,null,"January","February","March","April","May"]
[null,345.32,450,502.21,591.87367399415871,683.13559249935759,null,null,null,null,null,null,591.87367399415871,502.21,683.13559249935759,450,345.32]

{"sheet":"alphabetic","index":12,"n_rows":17,"n_cols":16,"rows_kept":17,"cut":false,"hidden":false,"merged":[[1,1,1,4],[1,12,1,15]]}
[]
[null,"Sort in Ascending Order",null,null,null,null,null,null,null,null,null,null,"Do It Yourself"]
[]
[null,"Date","Product","Size","Sales",null,null,null,null,null,null,null,"Date","Product","Size","Sales"]
[null,"2023-03-19","Frock","Large",376.11,null,null,null,null,null,null,null,"2023-03-02","Shirt","Large",502.21]
[null,"2023-03-04","Gown","Medium",342.64,null,null,null,null,null,null,null,"2023-03-08","Sweater","Small",620.99]
[null,"2023-01-29","Gown","Medium",329.83,null,null,null,null,null,null,null,"2023-02-22","Pant","Medium",248.87]
[null,"2023-02-22","Pant","Medium",248.87,null,null,null,null,null,null,null,"2023-01-31","Trouser","Extra Large",686.1]
[null,"2023-03-02","Shirt","Large",502.21,null,null,null,null,null,null,null,"2023-02-15","Skirt","Small",640.4]
[null,"2023-01-23","Shirt","Small",465.4,null,null,null,null,null,null,null,"2023-03-04","Gown","Medium",342.64]
[null,"2023-03-10","Shirt","Extra Large",539.19000000000005,null,null,null,null,null,null,null,"2023-03-19","Frock","Large",376.11]
[null,"2023-02-15","Skirt","Small",640.4,null,null,null,null,null,null,null,"2023-02-09","Sweater","Large",536.52]
[null,"2023-03-08","Sweater","Small",620.99,null,null,null,null,null,null,null,"2023-02-14","Trouser","Extra Large",576.77]
[null,"2023-02-09","Sweater","Large",536.52,null,null,null,null,null,null,null,"2023-01-29","Gown","Medium",329.83]
[null,"2023-01-31","Trouser","Extra Large",686.1,null,null,null,null,null,null,null,"2023-01-23","Shirt","Small",465.4]
[null,"2023-02-14","Trouser","Extra Large",576.77,null,null,null,null,null,null,null,"2023-02-28","Trouser","Large",234.06]
[null,"2023-02-28","Trouser","Large",234.06,null,null,null,null,null,null,null,"2023-03-10","Shirt","Extra Large",539.19000000000005]

{"sheet":"filter and sort","index":13,"n_rows":17,"n_cols":5,"rows_kept":17,"cut":false,"hidden":false,"merged":[[1,1,1,4]]}
[]
[null,"Sort Filtered Data"]
[]
[null,"Date","Product","Size","Sales"]
[null,"2023-02-22","Pant","Medium",248.87]
[null,"2023-03-08","Sweater","Small",620.99]
[null,"2023-01-29","Gown","Medium",329.83]
[null,"2023-01-31","Trouser","Extra Large",686.1]
[null,"2023-02-15","Skirt","Small",640.4]
[null,"2023-03-04","Gown","Medium",342.64]
[null,"2023-03-19","Frock","Large",376.11]
[null,"2023-02-09","Sweater","Large",536.52]
[null,"2023-02-14","Trouser","Extra Large",576.77]
[null,"2023-01-23","Shirt","Small",465.4]
[null,"2023-03-02","Shirt","Large",502.21]
[null,"2023-02-28","Trouser","Large",234.06]
[null,"2023-03-10","Shirt","Extra Large",539.19000000000005]